fUSD/lending_fUSD_20240415
["ID","MTS","AMOUNT","RATE_DAILY","PERIOD"]
[322675329,1713208240811,-1054.0,0.00020093,2]
[322675330,1713208240820,-1500.0,0.00020163,2]
[322675331,1713208240830,-150.0,0.0002017,2]
[322675332,1713208240838,-150.0,0.00020183,2]
[322675333,1713208240848,-1500.0,0.00020185,2]
[322675334,1713208240857,-534.0,0.00020192,2]
[322675335,1713208240870,-538.0,0.00020192,2]
[322675336,1713208240879,-150.0,0.00020194,2]
[322675337,1713208240891,-165.73573835,0.00020197,2]
[322675338,1713208240901,-150.0,0.00020201,2]
[322675339,1713208240911,-1500.0,0.00020202,2]
[322675340,1713208240920,-150.0,0.00020209,2]
[322675341,1713208240930,-150.0,0.0002021,2]
[322675342,1713208240940,-150.0,0.00020213,2]
[322675343,1713208240949,-150.0,0.00020213,2]
[322675344,1713208240958,-1500.0,0.00020215,2]
[322675345,1713208240968,-150.0,0.00020217,2]
[322675346,1713208240977,-150.0,0.00020221,2]
[322675347,1713208240987,-150.0,0.00020223,2]
[322675348,1713208240996,-1500.0,0.00020225,2]
[322675349,1713208241005,-533.24807309,0.00020234,2]
[322675350,1713208241015,-150.0,0.00020235,2]
[322675351,1713208241024,-153.08125003,0.00020236,2]
[322675352,1713208241033,-150.0,0.00020237,2]
[322675353,1713208241043,-150.0,0.00020238,2]
[322675354,1713208241052,-1500.0,0.00020241,2]
[322675355,1713208241061,-150.0,0.00020242,2]
[322675356,1713208241071,-150.0,0.00020243,2]
[322675357,1713208241080,-150.0,0.00020245,2]
[322675358,1713208241090,-150.0,0.00020245,2]
[322675359,1713208241100,-150.0,0.00020245,2]
[322675360,1713208241110,-150.0,0.00020247,2]
[322675361,1713208241120,-1500.0,0.00020247,2]
[322675362,1713208241130,-150.0,0.0002025,2]
[322675363,1713208241143,-150.0,0.00020252,2]
[322675364,1713208241153,-150.0,0.00020255,2]
[322675365,1713208241163,-150.0,0.00020256,2]
[322675366,1713208241172,-150.0,0.00020256,2]
[322675367,1713208241181,-150.0,0.00020256,2]
[322675368,1713208241191,-303.15770896,0.00020256,2]
[322675369,1713208241201,-500.81667404,0.00020257,2]
[322675370,1713208241210,-150.0,0.00020258,2]
[322675371,1713208241220,-1250.0,0.0002026,2]
[322675372,1713208241229,-1250.0,0.0002026,2]
[322675373,1713208241239,-150.0,0.00020261,2]
[322675374,1713208241249,-150.0,0.00020262,2]
[322675375,1713208241258,-1500.0,0.00020263,2]
[322675376,1713208241268,-150.0,0.00020266,2]
[322675377,1713208241278,-150.0,0.00020266,2]
[322675378,1713208241287,-150.0,0.00020266,2]
[322675379,1713208241296,-1500.0,0.00020268,2]
[322675380,1713208241305,-150.0,0.00020269,2]
[322675381,1713208241314,-150.0,0.00020272,2]
[322675382,1713208241324,-150.0,0.00020272,2]
[322675383,1713208241333,-150.0,0.00020275,2]
[322675384,1713208241342,-150.0,0.0002028,2]
[322675385,1713208241352,-150.0,0.00020283,2]
[322675386,1713208241361,-1500.0,0.00020284,2]
[322675387,1713208241371,-152.53634122,0.00020287,2]
[322675388,1713208241381,-150.0,0.0002029,2]
[322675389,1713208241394,-150.0,0.00020293,2]
[322675390,1713208241404,-1500.0,0.00020296,2]
[322675391,1713208241414,-150.0,0.00020299,2]
[322675392,1713208241423,-150.0,0.00020299,2]
[322675393,1713208241433,-150.0,0.000203,2]
[322675394,1713208241442,-150.0,0.000203,2]
[322675395,1713208241452,-150.0,0.000203,2]
[322675396,1713208241461,-150.0,0.00020301,2]
[322675397,1713208241470,-1500.0,0.00020304,2]
[322675398,1713208241480,-1500.0,0.00020306,2]
[322675399,1713208241490,-150.0,0.00020306,2]
[322675400,1713208241499,-150.0,0.00020307,2]
[322675401,1713208241508,-150.0,0.00020309,2]
[322675402,1713208241517,-150.0,0.0002031,2]
[322675403,1713208241526,-150.0,0.00020311,2]
[322675404,1713208241535,-1500.0,0.00020313,2]
[322675405,1713208241544,-150.0,0.00020313,2]
[322675406,1713208241554,-150.0,0.00020316,2]
[322675407,1713208241563,-150.0,0.00020319,2]
[322675408,1713208241572,-150.0,0.00020319,2]
[322675409,1713208241581,-150.0,0.0002032,2]
[322675410,1713208241590,-150.0,0.00020321,2]
[322675411,1713208241599,-150.0,0.00020322,2]
[322675412,1713208241607,-150.0,0.00020323,2]
[322675413,1713208241617,-150.0,0.00020325,2]
[322675414,1713208241625,-150.0,0.00020326,2]
[322675415,1713208241635,-150.0,0.00020329,2]
[322675416,1713208241646,-150.0,0.00020334,2]
[322675417,1713208241656,-415.97,0.00020336,2]
[322675418,1713208241669,-1500.0,0.00020338,2]
[322675419,1713208241678,-150.0,0.0002034,2]
[322675420,1713208241687,-300.0,0.00020343,2]
[322675421,1713208241696,-150.0,0.00020345,2]
[322675422,1713208241706,-150.0,0.00020347,2]
[322675423,1713208241715,-1500.0,0.0002035,2]
[322675424,1713208241724,-150.0,0.00020354,2]
[322675425,1713208241733,-150.0,0.00020355,2]
[322675426,1713208241743,-150.0,0.00020356,2]
[322675427,1713208241753,-150.0,0.00020356,2]
[322675428,1713208241762,-150.0,0.00020359,2]
[322675429,1713208241771,-150.0,0.00020359,2]
[322675430,1713208241780,-1500.0,0.00020361,2]
[322675431,1713208241790,-1500.0,0.00020361,2]
[322675432,1713208241799,-150.0,0.00020363,2]
[322675433,1713208241809,-150.0,0.00020363,2]
[322675434,1713208241818,-150.0,0.00020367,2]
[322675435,1713208241826,-150.0,0.0002037,2]
[322675436,1713208241836,-150.0,0.00020371,2]
[322675437,1713208241846,-1500.0,0.00020374,2]
[322675438,1713208241856,-150.0,0.00020378,2]
[322675439,1713208241865,-150.0,0.00020381,2]
[322675440,1713208241874,-150.0,0.00020382,2]
[322675441,1713208241883,-305.86,0.00020385,2]
[322675442,1713208241896,-150.0,0.00020387,2]
[322675443,1713208241906,-150.0,0.00020388,2]
[322675444,1713208241915,-150.0,0.00020388,2]
[322675445,1713208241924,-150.0,0.00020393,2]
[322675446,1713208241934,-150.0,0.000204,2]
[322675447,1713208241943,-300.0,0.00020409,2]
[322675448,1713208241952,-150.0,0.00020413,2]
[322675449,1713208241961,-150.0,0.00020413,2]
[322675450,1713208241970,-150.0,0.00020414,2]
[322675451,1713208241979,-1500.0,0.00020414,2]
[322675452,1713208241989,-150.0,0.00020417,2]
[322675453,1713208241998,-150.0,0.00020421,2]
[322675454,1713208242008,-150.0,0.00020422,2]
[322675455,1713208242016,-150.0,0.00020422,2]
[322675456,1713208242026,-208.0,0.00020422,2]
[322675457,1713208242036,-150.0,0.00020422,2]
[322675458,1713208242045,-160.279,0.00020422,2]
[322675459,1713208242054,-150.0,0.00020422,2]
[322675460,1713208242064,-150.0,0.00020422,2]
[322675461,1713208242073,-155.351,0.00020422,2]
[322675462,1713208242084,-266.137,0.00020422,2]
[322675463,1713208242094,-150.376,0.00020422,2]
[322675464,1713208242103,-150.0,0.00020422,2]
[322675465,1713208242112,-278.026,0.00020422,2]
[322675466,1713208242122,-263.855,0.00020422,2]
[322675467,1713208242132,-150.169,0.00020422,2]
[322675468,1713208242145,-253.885,0.00020422,2]
[322675469,1713208242154,-164.0,0.00020422,2]
[322675470,1713208242164,-2292.0,0.00020422,2]
[322675471,1713208242173,-1391.0,0.00020422,2]
[322675472,1713208242183,-461.0,0.00020422,2]
[322675473,1713208242192,-968.0,0.00020422,2]
[322675474,1713208242202,-1253.0,0.00020422,2]
[322675475,1713208242211,-150.0,0.00020425,2]
[322675476,1713208242220,-150.0,0.00020433,2]
[322675477,1713208242230,-300.0,0.00020434,2]
[322675478,1713208242239,-150.0,0.0002044,2]
[322675479,1713208242248,-150.0,0.00020442,2]
[322675480,1713208242259,-150.0,0.00020447,2]
[322675481,1713208242268,-150.0,0.00020453,2]
[322675482,1713208242278,-150.0,0.00020462,2]
[322675483,1713208242287,-150.0,0.00020466,2]
[322675484,1713208242296,-150.0,0.00020467,2]
[322675485,1713208242306,-150.0,0.00020469,2]
[322675486,1713208242315,-150.0,0.00020472,2]
[322675487,1713208242324,-12589.45723495,0.000205,2]
[322675488,1713208242333,-150.0,0.000205,2]
[322675490,1713208242342,-150.0,0.00020512,2]
[322675492,1713208242352,-4774.981968,0.00020548,2]
[322675493,1713208242362,-4774.981968,0.00020548,2]
[322675494,1713208242372,-4774.981968,0.00020548,2]
[322675495,1713208242381,-4774.981968,0.00020548,2]
[322675496,1713208242393,-4774.981968,0.00020548,2]
[322675497,1713208242402,-4774.981968,0.00020548,2]
[322675498,1713208242412,-4774.981968,0.00020548,2]
[322675499,1713208242421,-4774.981968,0.00020548,2]
[322675500,1713208242431,-4774.981968,0.00020548,2]
[322675501,1713208242440,-4774.981968,0.00020548,2]
[322675502,1713208242449,-4774.981968,0.00020548,2]
[322675503,1713208242459,-4774.981968,0.00020548,2]
[322675504,1713208242468,-4774.981968,0.00020548,2]
[322675505,1713208242477,-4774.981968,0.00020548,2]
[322675506,1713208242486,-211.61,0.00020548,2]
[322675507,1713208242495,-152.12,0.00020548,2]
[322675513,1713208242751,-150.0,0.00020548,2]
[322675514,1713208242761,-150.0,0.00020548,2]
[322675515,1713208242771,-150.0,0.00020548,2]
[322675516,1713208242781,-152.53634122,0.00020586,2]
[322675517,1713208242790,-150.0,0.00020589,2]
[322675518,1713208242800,-150.0,0.00020593,2]
[322675519,1713208242809,-150.0,0.00020616,2]
[322675520,1713208242818,-1000.0,0.00020699,2]
[322675521,1713208242828,-441.77977984,0.000207,2]
[322675522,1713208242837,-441.77977984,0.000207,2]
[322675523,1713208242847,-441.77977984,0.000207,2]
[322675524,1713208242856,-441.77977984,0.000207,2]
[322675525,1713208242866,-441.77977984,0.000207,2]
[322675526,1713208242876,-441.77977984,0.000207,2]
[322675527,1713208242885,-441.77977984,0.000207,2]
[322675528,1713208242899,-441.77977984,0.000207,2]
[322675529,1713208242908,-441.77977984,0.000207,2]
[322675530,1713208242918,-441.77977984,0.000207,2]
[322675531,1713208242927,-441.77977984,0.000207,2]
[322675532,1713208242936,-441.77977984,0.000207,2]
[322675533,1713208242946,-441.77977984,0.000207,2]
[322675534,1713208242956,-441.77977984,0.000207,2]
[322675535,1713208242965,-441.77977984,0.000207,2]
[322675536,1713208242975,-441.77977984,0.000207,2]
[322675537,1713208242985,-441.77977984,0.000207,2]
[322675538,1713208242995,-441.77977984,0.000207,2]
[322675539,1713208243004,-441.77977984,0.000207,2]
[322675540,1713208243013,-441.77977984,0.000207,2]
[322675541,1713208243023,-6969.25788283,0.00020775,2]
[322675542,1713208243032,-295.73979278,0.00020775,2]
[322675543,1713208243041,-1240.75490033,0.00020775,2]
[322675544,1713208243051,-4322.13491248,0.00020775,2]
[322675545,1713208243059,-550.49040338,0.00020775,2]
[322675546,1713208243069,-567.95813038,0.00020775,2]
[322675547,1713208243078,-1072.0,0.000208,7]
[322675548,1713208243088,-796.07265615,0.00020815,2]
[322675549,1713208243097,-792.56648966,0.00020815,2]
[322675550,1713208243107,-3072.6478339,0.00020815,2]
[322675551,1713208243116,-171.56,0.0002085,2]
[322675552,1713208243125,-927.13844328,0.00020874,2]
[322675553,1713208243134,-193.93233813,0.00020876,2]
[322675554,1713208243149,-155.25282702,0.00020876,2]
[322675555,1713208243158,-155.0604962,0.00020876,2]
[322675556,1713208243168,-200.6947314,0.00020876,2]
[322675558,1713208243177,-210.02388994,0.00020876,2]
[322675559,1713208243186,-190.88222919,0.00020876,2]
[322675561,1713208243196,-228.90820822,0.00020876,2]
[322675562,1713208243206,-369.14774924,0.00020876,2]
[322675563,1713208243215,-6259.59460942,0.00020877,2]
[322675564,1713208243224,-155.6195763,0.00020877,2]
[322675565,1713208243234,-155.0,0.00020877,2]
[322675566,1713208243243,-155.0,0.00020877,2]
[322675567,1713208243252,-485.66071093,0.00020877,2]
[322675569,1713208243261,-222.61313461,0.00020877,2]
[322675571,1713208243271,-344.39344563,0.00020878,2]
[322675573,1713208243280,-951.47795975,0.00020878,2]
[322675575,1713208243290,-101352.18297192,0.00020879,2]
[322675577,1713208243299,-5055.8496058,0.00020879,2]
[322675578,1713208243308,-4774.981968,0.00020879,2]
[322675579,1713208243318,-4774.981968,0.00020879,2]
[322675580,1713208243327,-152.53634122,0.00020886,2]
[322675581,1713208243337,-78044.0841816,0.00020886,2]
[322675582,1713208243346,-2131.9811218,0.00020886,2]
[322675583,1713208243355,-2915.5354466,0.00020886,2]
[322675584,1713208243365,-4774.981968,0.00020886,2]
[322675585,1713208243374,-4774.981968,0.00020886,2]
[322675586,1713208243384,-49137.1008394,0.00020886,2]
[322675587,1713208243397,-1191.3187625,0.00020886,2]
[322675588,1713208243406,-8476.558981,0.00020886,2]
[322675589,1713208243416,-298.26337914,0.00020898,2]
[322675590,1713208243425,-10602.61329827,0.00020899,2]
[322675591,1713208243436,-13791.59954372,0.00020899,2]
[322675592,1713208243446,-8074566.13397165,0.000209,3]
[322675593,1713208243456,-250000.0,0.000209,2]
[322675594,1713208243465,-123711.71637992,0.000209,2]
[322675595,1713208243475,-1017.85,0.000209,2]
[322675596,1713208243485,-1437.53,0.000209,2]
[322675597,1713208243496,-274563.251742,0.000209,2]
[322675598,1713208243506,-4774.981968,0.000209,2]
[322675599,1713208243515,-4774.98195958,0.000209,2]
[322675600,1713208243525,-87471.8731088,0.00020986,2]
[322675601,1713208243535,-96899.6620361,0.00020986,2]
[322675602,1713208243544,-106327.4509633,0.00020986,2]
[322675603,1713208243554,-2389.5261776,0.00020986,2]
[322675604,1713208243563,-2647.0712334,0.00020986,2]
[322675605,1713208243572,-2904.6162891,0.00020986,2]
[322675606,1713208243581,-3273.5098251,0.00020986,2]
[322675607,1713208243591,-3631.4842036,0.00020986,2]
[322675608,1713208243601,-3989.4585821,0.00020986,2]
[322675609,1713208243610,-55170.237276,0.00020986,2]
[322675610,1713208243619,-61203.3737126,0.00020986,2]
[322675611,1713208243629,-67236.5101492,0.00020986,2]
[322675612,1713208243643,-1318.3057635,0.00020986,2]
[322675613,1713208243657,-1445.2927645,0.00020986,2]
[322675614,1713208243670,-1572.2797655,0.00020986,2]
[322675615,1713208243679,-9380.1062412,0.00020986,2]
[322675616,1713208243689,-10283.6535015,0.00020986,2]
[322675617,1713208243698,-322.36159374,0.0002099,2]
[322675618,1713208243708,-2200.0,0.0002099,2]
[322675619,1713208243717,-1129.77076455,0.00020997,2]
[322675620,1713208243729,-260.60784683,0.00020998,2]
[322675621,1713208243738,-96908.57333938,0.00020998,2]
[322675622,1713208243747,-225671.3043324,0.00020998,2]
[322675623,1713208243757,-839.8238,0.00020999,2]
[322675624,1713208243766,-150.0,0.00020999,2]
[322675625,1713208243775,-38258.16779892,0.00020999,2]
[322675626,1713208243785,-12147.44589705,0.00020999,2]
[322675627,1713208243795,-10422235.75064772,0.00021,2]
[322675628,1713208244455,-416069.33853155,0.00021,2]
[322675629,1713208244466,-31461.33204127,0.00021,2]
[322675630,1713208244671,-974.08067741,0.00021,2]
[322675631,1713208244683,-395911.86533586,0.00021,2]
[322675632,1713208244692,-1430.52250641,0.00021,2]
[322675633,1713208244703,-2239295.35148278,0.00021,2]
[322675634,1713208244712,-500.228447,0.00021,2]
[322675635,1713208244721,-2560.0,0.00021,2]
[322675636,1713208244731,-38758.66341241,0.00021,2]
[322675637,1713208244741,-295821.30508877,0.00021,2]
[322675638,1713208244775,-2048.90497798,0.00021,2]
[322675639,1713208244786,-1128.01659157,0.00021,2]
[322675645,1713208245357,-1067.5,0.00021,2]
[322675646,1713208245371,-4799.99235069,0.00021,2]
[322675647,1713208245382,-6098.71573554,0.00021,2]
[322675648,1713208245395,-9822.37649557,0.00021,2]
[322675649,1713208245409,-1000.3158744,0.00021,2]
[322675650,1713208245420,-31497.55497119,0.00021,2]
[322675651,1713208245431,-273.70486617,0.00021,2]
[322675659,1713208247055,-1260.0,0.00018843,2]
[322675660,1713208247101,-534.927981,0.00018843,2]
[322675661,1713208247113,-9181.06882197,0.00018843,2]
[322675662,1713208247123,-5836.6670907,0.00018977,2]
[322675663,1713208247133,-620.51143782,0.00019999,2]
[322675664,1713208247143,-11187.2007617,0.00020986,2]
[322675665,1713208247152,-4513.05188781,0.00021,2]
[322675666,1713208247164,-630.63,0.00021,2]
[322675667,1713208247222,-155.0,0.00019999,2]
[322675668,1713208247231,-164.97709562,0.00021,2]
[322675669,1713208247311,-9579.71506389,0.00021,2]
[322675670,1713208247323,-4925.38816,0.00021,2]
[322675671,1713208247335,-97994.24906216,0.00021,2]
[322675672,1713208247347,-895.80801279,0.00021,2]
[322675673,1713208247541,-1062.09176248,0.00021,2]
[322675674,1713208247552,-2951.64320969,0.00021,2]
[322675675,1713208247564,-5124.45317765,0.00021,2]
[322675676,1713208247576,-1267.05497542,0.00021,2]
[322675677,1713208247588,-978.61805439,0.00021,2]
[322675678,1713208247600,-57488.64429115,0.00021,2]
[322675679,1713208248970,-190.41367384,0.00018842,2]
[322675680,1713208248981,-155.80892173,0.00018842,2]
[322675681,1713208248990,-247.28993898,0.00018842,2]
[322675682,1713208248999,-5697.25966546,0.00021,2]
[322675683,1713208249109,-189.65213455,0.00019178,2]
[322675684,1713208249118,-434.66232608,0.00021,2]
[322675685,1713208249289,-1572.90040504,0.00021,2]
[322675686,1713208249325,-274.64437001,0.00021,2]
[322675687,1713208400880,162.84,0.00017609,2]
[322675688,1713208512406,-155.0,0.00018477,2]
[322675689,1713208512428,-445.0,0.00018477,2]
[322675690,1713208562632,203.39,0.0002603,120]
[322675691,1713208739308,414.49,0.00017562,2]
[322675692,1713208933330,23890.0,0.00017786,2]
[322675693,1713209024839,306.75,0.00017738,2]
[322675694,1713209078857,5304.6116,0.00017737,2]
[322675695,1713209191117,169.89,0.00017741,2]
[322675696,1713209267169,415.75,0.00015857,2]
[322675697,1713209302909,1500.0,0.00016741,2]
[322675698,1713209303003,1500.0,0.00016704,2]
[322675699,1713209303130,1500.0,0.00016314,2]
[322675700,1713209303184,1500.0,0.00017155,2]
[322675701,1713209303234,1500.0,0.00016967,2]
[322675702,1713209323910,150.0,0.00016267,2]
[322675703,1713209323963,150.0,0.00017189,2]
[322675704,1713209324165,150.0,0.00017197,2]
[322675705,1713209324246,150.0,0.00017335,2]
[322675706,1713209324518,150.0,0.00017636,2]
[322675763,1713209380755,150.0,0.000178,2]
[322675764,1713209390860,7063.03,0.00017771,2]
[322675765,1713209391130,200.0,0.00017771,2]
[322675766,1713209425613,614.77,0.00017771,2]
[322675807,1713209432211,-1059.54973418,0.0001781,2]
[322675808,1713209432223,-2357.32362164,0.00017811,2]
[322675809,1713209432233,-264.01498696,0.00017811,2]
[322675810,1713209432242,-408.60422186,0.00017812,2]
[322675811,1713209432252,-246.10562957,0.00017812,2]
[322675812,1713209432261,-150.0,0.00017813,2]
[322675813,1713209432271,-10555.34394596,0.00017814,2]
[322675814,1713209432281,-350.47517981,0.00017835,2]
[322675815,1713209432290,-155.0,0.00017836,2]
[322675816,1713209432299,-3353.58268002,0.00017837,2]
[322675817,1713209432351,-664.0,0.00017837,2]
[322675818,1713209432395,-844.00971584,0.00017837,2]
[322675819,1713209432449,-858.16390953,0.00017837,2]
[322675820,1713209432462,-378.294,0.00017837,2]
[322675821,1713209432477,-317.1,0.00017837,2]
[322675822,1713209432490,-327.97568506,0.00017837,2]
[322675823,1713209432502,-459.26,0.00017837,2]
[322675824,1713209432531,-858.85640371,0.00017837,2]
[322675835,1713209437938,-246.10562957,0.00017809,2]
[322675836,1713209437948,-248.62197635,0.00017812,2]
[322675837,1713209438008,-10898.65388489,0.00017812,2]
[322675838,1713209438018,-13268.60288956,0.00017837,2]
[322675839,1713209438027,-150.0,0.00017843,2]
[322675840,1713209438036,-3100.48,0.00017846,2]
[322675841,1713209438045,-4733.06,0.0001785,2]
[322675842,1713209438054,-150.0,0.00018024,2]
[322675843,1713209438067,-150.99,0.00018024,2]
[322675844,1713209438076,-150.0,0.00018094,2]
[322675845,1713209438085,-150.0,0.00018098,2]
[322675846,1713209438094,-415.75,0.00018121,2]
[322675847,1713209438104,-150.0,0.00018216,2]
[322675848,1713209438113,-150.0,0.00018272,2]
[322675849,1713209438123,-150.0,0.00018367,2]
[322675850,1713209438133,-499.99,0.0001848,2]
[322675851,1713209438143,-150.0,0.00018502,2]
[322675852,1713209438152,-1500.0,0.00018536,2]
[322675853,1713209438161,-150.0,0.00018617,2]
[322675854,1713209438170,-150.0,0.00018636,2]
[322675855,1713209438180,-150.0,0.00018669,2]
[322675856,1713209438189,-150.0,0.00018701,2]
[322675857,1713209438198,-150.0,0.00018719,2]
[322675858,1713209438206,-150.0,0.00018745,2]
[322675859,1713209438215,-150.0,0.00018775,2]
[322675860,1713209438225,-150.0,0.00018783,2]
[322675861,1713209438234,-880.0,0.00018807,2]
[322675862,1713209438243,-150.0,0.00018835,2]
[322675863,1713209438253,-10000.0,0.000189,2]
[322675865,1713209438264,-400.0,0.000189,6]
[322675866,1713209438273,-1500.0,0.0001891,2]
[322675867,1713209438283,-151.41,0.00018911,2]
[322675868,1713209438292,-150.0,0.00018914,2]
[322675869,1713209438302,-203.39,0.00018931,2]
[322675870,1713209438311,-151.41,0.00018987,2]
[322675871,1713209438323,-156.04143664,0.00019,2]
[322675872,1713209438332,-1550.0,0.00019,3]
[322675873,1713209438342,-151.41,0.00019062,2]
[322675874,1713209438351,-2628.429,0.00019076,2]
[322675875,1713209438361,-7095.9103,0.00019076,2]
[322675876,1713209438371,-10442.29445578,0.00019077,2]
[322675877,1713209438380,-150.0,0.00019116,2]
[322675878,1713209438390,-150.0,0.00019126,2]
[322675879,1713209438399,-150.0,0.00019128,2]
[322675880,1713209438408,-151.41,0.00019138,2]
[322675881,1713209438417,-150.0,0.0001914,2]
[322675882,1713209438426,-178.0309644,0.00019166,2]
[322675883,1713209438435,-683.13738738,0.00019175,2]
[322675884,1713209438444,-7136.10617833,0.00019175,4]
[322675885,1713209438454,-325.20065423,0.00019176,2]
[322675886,1713209438463,-684824.99860895,0.00019176,2]
[322675887,1713209438474,-202222.60831008,0.00019177,2]
[322675888,1713209438484,-549.0,0.00019178,2]
[322675889,1713209438493,-3408.1,0.00019178,2]
[322675890,1713209438502,-643.28,0.00019178,2]
[322675891,1713209438511,-290.64,0.0001918,2]
[322675892,1713209438521,-290.64,0.0001918,2]
[322675893,1713209438529,-290.64,0.0001918,2]
[322675894,1713209438538,-290.64,0.0001918,2]
[322675895,1713209438548,-150.0,0.00019182,2]
[322675896,1713209438557,-644.16843782,0.00019193,2]
[322675897,1713209438566,-151.41,0.00019214,2]
[322675898,1713209438576,-536.07,0.00019246,2]
[322675899,1713209438585,-10442.29445576,0.0001928,2]
[322675900,1713209438594,-151.41,0.0001929,2]
[322675901,1713209438603,-318.62015037,0.00019305,2]
[322675902,1713209438612,-150.0,0.00019338,2]
[322675903,1713209438622,-150.0,0.00019355,2]
[322675904,1713209438631,-151.41,0.00019366,2]
[322675905,1713209438641,-192.95814748,0.0001938,2]
[322675906,1713209438650,-150.0,0.00019404,2]
[322675907,1713209438660,-151.41,0.00019441,2]
[322675908,1713209438669,-3172.90460698,0.00019475,2]
[322675909,1713209438678,-201.02,0.0001948,2]
[322675910,1713209438687,-10442.29445576,0.00019482,2]
[322675911,1713209438696,-201.02,0.00019485,2]
[322675912,1713209438705,-201.02,0.0001949,2]
[322675913,1713209438714,-201.02,0.00019495,2]
[322675914,1713209438726,-201.02,0.000195,2]
[322675915,1713209438735,-201.02,0.00019505,2]
[322675916,1713209438744,-201.02,0.0001951,2]
[322675917,1713209438753,-150.0,0.00019514,2]
[322675918,1713209438761,-201.02,0.00019516,2]
[322675919,1713209438770,-151.41,0.00019517,2]
[322675920,1713209438778,-201.02,0.00019521,2]
[322675921,1713209438787,-201.02,0.00019526,2]
[322675922,1713209438796,-201.02,0.00019531,2]
[322675923,1713209438805,-318.62015037,0.00019533,2]
[322675924,1713209438813,-201.02,0.00019536,2]
[322675925,1713209438822,-201.02,0.00019541,2]
[322675926,1713209438831,-201.02,0.00019546,2]
[322675927,1713209438840,-201.02,0.00019551,2]
[322675928,1713209438849,-201.02,0.00019556,2]
[322675929,1713209438858,-201.02,0.00019562,2]
[322675930,1713209438867,-201.02,0.00019567,2]
[322675931,1713209438876,-150.0,0.00019569,2]
[322675932,1713209438884,-201.02,0.00019572,2]
[322675933,1713209438893,-150.0,0.00019572,2]
[322675934,1713209438902,-201.02,0.00019577,2]
[322675935,1713209438911,-151.41,0.00019593,2]
[322675936,1713209438920,-150.0,0.00019642,2]
[322675937,1713209438929,-151.41,0.00019669,2]
[322675938,1713209438938,-290.64,0.00019675,2]
[322675939,1713209438948,-10442.29445576,0.00019685,2]
[322675940,1713209438957,-800.0,0.000197,7]
[322675941,1713209438966,-1000.0,0.00019726,2]
[322675942,1713209438978,-151.41,0.00019745,2]
[322675943,1713209438986,-318.62015037,0.00019761,2]
[322675944,1713209438995,-150.0,0.00019785,2]
[322675945,1713209439004,-150.0,0.00019789,2]
[322675946,1713209439015,-170.66355813,0.000198,2]
[322675947,1713209439024,-1200.0,0.000198,7]
[322675948,1713209439033,-151.41,0.00019821,2]
[322675949,1713209439042,-200.0,0.00019829,2]
[322675950,1713209439055,-150.0,0.00019862,2]
[322675951,1713209439064,-10442.29445576,0.00019887,2]
[322675952,1713209439073,-151.41,0.00019896,2]
[322675953,1713209439082,-3355.0,0.000199,2]
[322675954,1713209439093,-2001.25099493,0.000199,2]
[322675955,1713209439101,-150.04060905,0.000199,2]
[322675956,1713209439110,-150.04060839,0.000199,2]
[322675957,1713209439119,-150.04060839,0.000199,2]
[322675958,1713209439130,-150.04060839,0.000199,2]
[322675959,1713209439139,-150.04060839,0.000199,2]
[322675960,1713209439148,-150.04060839,0.000199,2]
[322675961,1713209439157,-150.04060839,0.000199,2]